fUSD/lending_fUSD_20251028
["ID","MTS","AMOUNT","RATE_DAILY","PERIOD"]
[392536345,1761630632248,-500.0,0.00028599,2]
[392536346,1761630632259,-5515.0,0.000286,3]
[392536347,1761630632268,-300.0,0.00028799,2]
[392536348,1761630632278,-300.0,0.00028799,2]
[392536349,1761630632288,-174.64690881,0.00028949,2]
[392536350,1761630632299,-5515.0,0.000291,5]
[392536351,1761630632310,-1200.0,0.00029199,2]
[392536352,1761630632320,-150.0,0.00029443,2]
[392536353,1761630632330,-150.0,0.00029498,2]
[392536354,1761630632340,-500.0,0.00029633,5]
[392536355,1761630632350,-508.32529215,0.00029633,5]
[392536356,1761630632360,-380.93506297,0.00029633,5]
[392536358,1761630632369,-561.52082145,0.00029633,5]
[392536359,1761630632378,-501.05311295,0.00029633,5]
[392536360,1761630632388,-262.42913533,0.00029646,2]
[392536361,1761630632397,-174.64690881,0.00029668,2]
[392536362,1761630632406,-999.0,0.00029712,3]
[392536363,1761630632416,-376.37,0.00029728,2]
[392536364,1761630632426,-1000.0,0.00029765,2]
[392536366,1761630632435,-379.02865027,0.00029765,2]
[392536369,1761630632444,-3198.18573586,0.00029766,2]
[392536372,1761630632468,-500.0,0.00028599,2]
[392536374,1761630632477,-500.0,0.00028599,2]
[392536376,1761630632487,-231.20141571,0.00028599,2]
[392536378,1761630632499,-61.43409305,0.00028599,2]
[392536380,1761630632508,-2561.9757368,0.00029766,2]
[392536384,1761630632528,-500.0,0.00028599,2]
[392536386,1761630632538,-67805.07852734,0.00029766,2]
[392536388,1761630632547,-665.67,0.00029768,2]
[392536390,1761630632556,-151.0,0.00029882,2]
[392536392,1761630632565,-151.0,0.00029882,2]
[392536394,1761630632574,-151.0,0.00029882,2]
[392536396,1761630632583,-151.0,0.00029882,2]
[392536398,1761630632592,-151.0,0.00029882,2]
[392536400,1761630632602,-151.0,0.00029882,2]
[392536402,1761630632613,-151.0,0.00029882,2]
[392536403,1761630632622,-151.0,0.00029882,2]
[392536405,1761630632631,-151.0,0.00029882,2]
[392536406,1761630632640,-151.0,0.00029882,2]
[392536407,1761630632649,-151.0,0.00029882,2]
[392536408,1761630632659,-151.0,0.00029882,2]
[392536409,1761630632668,-151.0,0.00029882,2]
[392536410,1761630632677,-151.0,0.00029882,2]
[392536411,1761630632687,-151.0,0.00029882,2]
[392536412,1761630632697,-151.0,0.00029882,2]
[392536413,1761630632706,-151.0,0.00029882,2]
[392536414,1761630632715,-151.0,0.00029882,2]
[392536415,1761630632725,-151.0,0.00029882,2]
[392536416,1761630632735,-151.0,0.00029882,2]
[392536417,1761630632744,-1000.0,0.00029967,2]
[392536418,1761630632754,-165.0,0.0003,14]
[392536419,1761630632764,-166.23,0.00030005,2]
[392536420,1761630632773,-572.42,0.00030009,2]
[392536421,1761630632783,-500.0,0.0003001,2]
[392536422,1761630632792,-3499.38,0.0003001,2]
[392536423,1761630632801,-887.35,0.00030036,2]
[392536424,1761630632811,-500.0,0.00030181,5]
[392536425,1761630632820,-202.95,0.00030344,2]
[392536426,1761630632829,-250.0,0.00030482,2]
[392536427,1761630632838,-150.0,0.00030496,2]
[392536428,1761630632847,-202.95,0.00030556,2]
[392536429,1761630632856,-696.68,0.0003063,2]
[392536430,1761630632865,-168.0,0.00030761,2]
[392536431,1761630632875,-317.51,0.00030767,2]
[392536432,1761630632884,-548.28,0.00030767,2]
[392536433,1761630632893,-162.85,0.00030767,2]
[392536434,1761630632902,-151.04,0.00030767,2]
[392536435,1761630632911,-414.86,0.00030767,2]
[392536436,1761630632920,-198.77,0.00030767,2]
[392536437,1761630632929,-548.28,0.00030767,2]
[392536438,1761630632939,-414.86,0.00030767,2]
[392536439,1761630632948,-414.86,0.00030767,2]
[392536440,1761630632957,-546.69,0.00030767,2]
[392536441,1761630632966,-202.95,0.00030768,2]
[392536442,1761630632975,-168.0,0.00030772,2]
[392536443,1761630632985,-168.0,0.00030819,2]
[392536444,1761630632994,-447.035,0.00030819,27]
[392536445,1761630633004,-1680.0,0.00030823,2]
[392536446,1761630633013,-250.0,0.00030835,2]
[392536447,1761630633022,-168.0,0.00030839,2]
[392536448,1761630633036,-1592.0,0.00030865,2]
[392536449,1761630633045,-457.52,0.00030877,2]
[392536450,1761630633055,-816.35,0.00030877,2]
[392536451,1761630633065,-151.09,0.00030877,2]
[392536452,1761630633074,-1190.10579216,0.0003088,2]
[392536453,1761630633083,-1190.10579216,0.0003088,2]
[392536454,1761630633092,-1058.40190179,0.00030881,2]
[392536455,1761630633119,-500.0,0.00028599,2]
[392536456,1761630633129,-272.66365344,0.00028599,2]
[392536458,1761630638115,-227.33634656,0.00028599,2]
[392536459,1761630638124,-191.73865344,0.00030881,2]
[392536460,1761630638226,-5795.31960645,0.00030881,2]
[392536461,1761630638235,-2500.0,0.000309,2]
[392536462,1761630638245,-1488.0,0.00030926,2]
[392536463,1761630638254,-7045.46016167,0.0003095,2]
[392536464,1761630638263,-214.12,0.00030978,14]
[392536465,1761630638272,-9.82560501,0.0003098,2]
[392536466,1761630638287,-902.32163095,0.0003098,2]
[392536467,1761630638396,-1512.06814833,0.0003098,2]
[392536483,1761630641486,-38757.6505314,0.0003098,2]
[392536484,1761630641496,-202.95,0.00030981,2]
[392536485,1761630641506,-1284.0,0.00030988,2]
[392536486,1761630641516,-50000.0,0.00031,2]
[392536487,1761630641525,-15369.1176657,0.00031,3]
[392536488,1761630641536,-1504.72875322,0.00031,2]
[392536489,1761630641546,-151.0,0.00031,10]
[392536490,1761630641555,-7045.46016167,0.00031019,2]
[392536491,1761630641565,-1683.96929165,0.00031032,2]
[392536492,1761630641576,-936.0,0.00031049,2]
[392536493,1761630641587,-300.0,0.00031053,2]
[392536494,1761630641597,-168.0,0.0003107,2]
[392536495,1761630641606,-420.0,0.00031077,2]
[392536496,1761630641616,-420.0,0.00031077,3]
[392536497,1761630641626,-7045.46016167,0.00031087,2]
[392536498,1761630641635,-1232.0,0.00031111,2]
[392536499,1761630641645,-1000.0,0.00031118,2]
[392536500,1761630641654,-219.73736914,0.00031123,2]
[392536501,1761630641666,-200.0,0.00031124,2]
[392536502,1761630641675,-1000.0,0.00031135,2]
[392536503,1761630641684,-646.211,0.00031135,2]
[392536504,1761630641693,-2593.5934,0.00031135,2]
[392536505,1761630641703,-167.57327569,0.00031138,15]
[392536506,1761630641712,-253.63598362,0.00031148,4]
[392536507,1761630641722,-7045.46016167,0.00031156,2]
[392536508,1761630641731,-250.0,0.00031163,2]
[392536509,1761630641743,-250.0,0.00031163,2]
[392536510,1761630641752,-250.0,0.00031163,2]
[392536511,1761630641762,-447.0,0.00031173,2]
[392536512,1761630641772,-151.0,0.00031178,31]
[392536513,1761630641781,-151.0,0.00031178,31]
[392536514,1761630641790,-151.0,0.00031178,31]
[392536515,1761630641800,-26335.8569052,0.0003119,3]
[392536516,1761630641809,-309.45017628,0.0003119,2]
[392536517,1761630641818,-202.95,0.00031193,2]
[392536518,1761630641828,-51206.56407652,0.000312,2]
[392536519,1761630641837,-13167.9284526,0.00031215,3]
[392536520,1761630641846,-7045.46016167,0.00031225,2]
[392536521,1761630641856,-1872.0,0.00031234,2]
[392536522,1761630641865,-500.0,0.00031234,7]
[392536523,1761630641874,-144847.212979,0.00031238,3]
[392536524,1761630641885,-151.0,0.00031238,31]
[392536525,1761630641895,-151.0,0.00031238,31]
[392536526,1761630641904,-235043.0343098,0.00031248,2]
[392536527,1761630641913,-151.000005,0.00031248,31]
[392536528,1761630641923,-2844.9091391,0.00031248,2]
[392536529,1761630641933,-59824.0750866,0.00031248,2]
[392536530,1761630641942,-500.0,0.00031248,15]
[392536531,1761630641952,-214.12,0.00031252,14]
[392536532,1761630641962,-13167.9284526,0.00031263,3]
[392536533,1761630641971,-168.0,0.00031265,2]
[392536534,1761630641981,-150.0,0.00031267,2]
[392536535,1761630641993,-500.0,0.00031267,2]
[392536536,1761630642002,-150.0,0.00031267,2]
[392536537,1761630642012,-150.0,0.00031267,2]
[392536538,1761630642022,-150.0,0.00031267,2]
[392536539,1761630642036,-500.0,0.00031273,5]
[392536540,1761630642047,-501.63968365,0.00031273,5]
[392536541,1761630642057,-503.0663356,0.00031273,2]
[392536542,1761630642066,-534.58306591,0.00031273,5]
[392536543,1761630642077,-500.0,0.00031273,5]
[392536544,1761630642087,-500.0,0.00031273,5]
[392536545,1761630642097,-283.11090683,0.00031279,7]
[392536546,1761630642108,-13167.9284526,0.0003128,3]
[392536547,1761630642118,-200.0,0.0003129,2]
[392536548,1761630642128,-405.5198,0.0003129,2]
[392536549,1761630642138,-26099.9524047,0.0003129,2]
[392536550,1761630642147,-7045.46016167,0.00031294,2]
[392536551,1761630642156,-637.0,0.00031296,2]
[392536552,1761630642166,-727.0,0.000313,5]
[392536553,1761630642176,-150.0,0.000313,2]
[392536554,1761630642185,-13167.9284526,0.00031319,3]
[392536555,1761630642195,-13167.9284526,0.00031352,3]
[392536556,1761630642204,-1329.0,0.00031357,2]
[392536557,1761630642214,-200.0,0.00031357,2]
[392536558,1761630642223,-7045.46016167,0.00031362,2]
[392536559,1761630642233,-724.77253762,0.00031375,2]
[392536560,1761630642242,-151.0,0.00031375,2]
[392536561,1761630642251,-184.12035782,0.00031375,2]
[392536562,1761630642262,-12423.52124845,0.00031394,3]
[392536568,1761630646296,-375.979577,0.0003111,2]
[392536569,1761630646306,-744.40720415,0.00031394,3]
[392536570,1761630646315,-161.56,0.000314,30]
[392536571,1761630646325,-854.91822413,0.000314,7]
[392536572,1761630646335,-500.0,0.00031404,2]
[392536573,1761630646345,-150.0,0.00031404,2]
[392536574,1761630646355,-202.95,0.00031406,2]
[392536575,1761630646364,-121.26552372,0.00031409,3]
[392536749,1761630789268,195.0,0.00031457,120]
[392536750,1761630792090,2449.76999812,0.00021,3]
[392536751,1761630805126,597.56,0.00015167,2]
[392536757,1761631043334,810.56203518,0.00037381,50]
[392536758,1761631202635,2840.87,0.00018329,14]
[392536759,1761631325050,500.0,0.00037378,120]
[392536768,1761631832315,-597.56,0.00015965,2]
[392536769,1761631832325,-274.42025582,0.00015965,2]
[392536770,1761631832336,-225.57974418,0.00015965,2]
[392536771,1761631832345,-32.80551053,0.00015965,2]
[392536772,1761631832357,-467.19448947,0.00015965,2]
[392536773,1761631832365,-334.78814069,0.00016763,2]
[392536774,1761631832376,-262.77185931,0.00016763,2]
[392536775,1761631832386,-1200.0,0.00017549,2]
[392536776,1761631832396,-1200.0,0.00017549,2]
[392536777,1761631832405,-300.0,0.00017549,2]
[392536778,1761631832416,-214.12,0.0001755,2]
[392536779,1761631832426,-151.0,0.0001755,2]
[392536780,1761631832436,-151.0,0.0001755,2]
[392536781,1761631832445,-151.0,0.0001755,2]
[392536782,1761631832455,-151.0,0.0001755,2]
[392536783,1761631832464,-151.0,0.0001755,2]
[392536784,1761631832474,-151.0,0.0001755,2]
[392536785,1761631832484,-151.0,0.0001755,2]
[392536786,1761631832494,-151.0,0.0001755,2]
[392536787,1761631832503,-113.42798434,0.0001755,2]
[392536788,1761631832538,-37.57201566,0.0001755,2]
[392536789,1761631832547,-151.0,0.0001755,2]
[392536790,1761631832557,-151.0,0.0001755,2]
[392536791,1761631832567,-151.0,0.0001755,2]
[392536792,1761631832576,-151.0,0.0001755,2]
[392536793,1761631832586,-151.0,0.0001755,2]
[392536794,1761631832597,-151.0,0.0001755,2]
[392536795,1761631832606,-151.0,0.0001755,2]
[392536796,1761631832617,-151.0,0.0001755,2]
[392536797,1761631832626,-151.0,0.0001755,2]
[392536798,1761631832635,-151.0,0.0001755,2]
[392536799,1761631832644,-151.0,0.0001755,2]
[392536800,1761631832654,-507.93737943,0.00017556,2]
[392536801,1761631832663,-500.0,0.00017556,2]
[392536802,1761631832673,-500.0,0.00017556,2]
[392536803,1761631832683,-500.0,0.00017556,2]
[392536804,1761631832693,-500.0,0.00017556,2]
[392536805,1761631832703,-572.19596557,0.00017556,2]
[392536806,1761631832713,-330.59795034,0.00017556,2]
[392536807,1761631832732,-169.40204966,0.00017556,2]
[392536809,1761631832741,-270.07333545,0.00017556,2]
[392536811,1761631832750,-460.52461489,0.00017556,2]
[392536813,1761631832761,-39.47538511,0.00017556,2]
[392536816,1761631832770,-500.0,0.00017556,2]
[392536818,1761631832779,-500.0,0.00017556,2]
[392536821,1761631832789,-304.03230875,0.00017556,2]
[392536824,1761631832801,-500.0,0.00017556,2]
[392536826,1761631832810,-500.0,0.00017556,2]
[392536829,1761631832819,-500.0,0.00017556,2]
[392536832,1761631832828,-500.0,0.00017556,2]
[392536834,1761631832839,-204.55137067,0.00017556,2]
[392536837,1761631832851,-295.44862933,0.00017556,2]
[392536839,1761631832861,-500.0,0.00017556,2]
[392536841,1761631832874,-80.44064424,0.00017556,2]
[392536843,1761631832885,-419.55935576,0.00017556,2]
[392536845,1761631832894,-500.0,0.00017556,2]
[392536847,1761631832903,-500.0,0.00017556,2]
[392536849,1761631832912,-256.21255002,0.00017556,2]
[392536851,1761631832921,-3304.0522514,0.00017562,2]
[392536854,1761631832941,-500.0,0.00017556,2]
[392536856,1761631832951,-500.0,0.00017556,2]
[392536858,1761631832960,-1771.17646641,0.00017562,2]
[392536860,1761631832969,-250.0,0.00017562,2]
[392536862,1761631832979,-195.0,0.00017562,2]
[392536864,1761631832990,-597.56,0.00017562,2]
[392536866,1761631832999,-500.0,0.000176,2]
[392536868,1761631833008,-500.0,0.000176,2]
[392536870,1761631833017,-503.65457467,0.000176,2]
[392536872,1761631833027,-500.0,0.000176,2]
[392536874,1761631833036,-507.23357509,0.000176,2]
[392536876,1761631833045,-500.0,0.00018148,2]
[392536877,1761631833055,-597.56,0.0001836,2]
[392536878,1761631833064,-502.79118704,0.000184,2]
[392536879,1761631833073,-500.0,0.000184,2]
[392536880,1761631833082,-500.0,0.000186,2]
[392536881,1761631833091,-170.34198276,0.000186,2]
[392536882,1761631833100,-152.98301885,0.00019148,2]
[392536883,1761631833109,-739.0,0.00019157,2]
[392536884,1761631833118,-420.0,0.00019157,2]
[392536885,1761631833127,-597.56,0.00019158,2]
[392536886,1761631833137,-1680.0,0.00019251,2]
[392536887,1761631833146,-597.56,0.00019957,2]
[392536888,1761631833155,-597.56,0.00020755,2]
[392536889,1761631833165,-587.0,0.00020912,2]
[392536890,1761631833174,-2351.0,0.00021119,2]
[392536891,1761631833183,-597.56,0.00021553,2]
[392536892,1761631833192,-597.56,0.00022351,2]
[392536893,1761631833202,-680.0,0.00022828,2]
[392536894,1761631833211,-597.56,0.0002315,2]
[392536895,1761631833220,-1576.0,0.00023167,2]
[392536896,1761631833229,-597.56,0.00023948,2]
[392536897,1761631833240,-173.64,0.00024658,2]
[392536898,1761631833249,-597.56,0.00024746,2]
[392536899,1761631833259,-3216.78292239,0.00025312,2]
[392536900,1761631833271,-1237.88707761,0.00025312,2]
[392536901,1761631833280,-597.56,0.00025545,2]
[392536902,1761631833289,-166.66,0.00026126,30]
[392536903,1761631833298,-300.0,0.00026248,2]
[392536904,1761631833308,-597.56,0.00026343,2]
[392536905,1761631833317,-2423.0,0.0002676,2]
[392536906,1761631833327,-597.56,0.00027141,2]
[392536907,1761631833336,-300.0,0.00027397,2]
[392536908,1761631833344,-300.0,0.00027618,2]
[392536909,1761631833354,-200.0,0.00027888,2]
[392536910,1761631833363,-200.0,0.00027888,2]
[392536911,1761631833372,-597.56,0.00027939,2]
[392536912,1761631833381,-162.57,0.00028078,2]
[392536913,1761631833391,-501.80992451,0.000282,5]
[392536914,1761631833399,-476.61195222,0.00028407,2]
[392536915,1761631833409,-150.0,0.0002843,4]
[392536916,1761631833418,-150.0,0.0002843,4]
[392536917,1761631833427,-150.0,0.0002843,4]
[392536918,1761631833437,-150.0,0.0002843,4]
[392536919,1761631833446,-150.00000001,0.0002843,4]
[392536920,1761631833455,-150.0,0.0002843,4]
[392536921,1761631833465,-597.56,0.00028738,2]
[392536922,1761631833474,-265.32005519,0.00029097,2]
[392536923,1761631833484,-25407.04138039,0.00029098,2]
[392536924,1761631833493,-597.56,0.00029536,2]
[392536925,1761631833503,-152.0,0.00029896,3]
[392536926,1761631833512,-165.0,0.0003,14]
[392536927,1761631833521,-150.0,0.0003,7]
[392536928,1761631833540,-150.0,0.0003001,7]
[392536929,1761631833550,-162.57,0.00030084,2]
[392536930,1761631833560,-509.68500415,0.00030137,2]
[392536931,1761631833569,-370.87,0.00030278,2]
[392536932,1761631833579,-597.56,0.00030334,2]
[392536933,1761631833588,-500.0,0.00030409,7]
[392536934,1761631833597,-500.0,0.00030409,7]
[392536935,1761631833607,-413.42,0.00030409,7]
[392536936,1761631833616,-500.0,0.00030409,7]
[392536937,1761631833626,-500.0,0.00030409,7]
[392536938,1761631833635,-428.15870567,0.00030409,7]
[392536939,1761631833649,-71.84129433,0.00030409,7]
[392536940,1761631833658,-500.0,0.00030409,7]
[392536941,1761631833668,-500.0,0.00030409,7]
[392536942,1761631833678,-500.0,0.00030409,7]
[392536943,1761631833687,-500.0,0.00030409,7]
[392536944,1761631833696,-648.24,0.00030409,7]
[392536945,1761631833706,-22653.82664596,0.00030409,2]
[392536946,1761631833715,-6056.53716518,0.00030522,2]
[392536947,1761631833747,-500.0,0.00017556,2]
[392536948,1761631833756,-8501.67045936,0.00030522,2]
[392536949,1761631838252,-278.29072589,0.00017556,2]
[392536950,1761631838310,-221.70927411,0.00017556,2]
[392536951,1761631838320,-500.0,0.00017556,2]
[392536952,1761631838329,-405.69072589,0.00017556,2]
[392536953,1761631838423,-94.30927411,0.00017556,2]
[392536954,1761631838433,-500.0,0.00017556,2]
[392536955,1761631838442,-68.36213089,0.00017556,2]
[392536959,1761631840611,-303.94,0.00017556,2]
[392536960,1761631840672,-127.69786911,0.00017556,2]
[392536961,1761631840682,-500.0,0.00017556,2]
[392536962,1761631840691,-500.0,0.00017556,2]
[392536963,1761631840700,-495.91367597,0.00017556,2]
[392536981,1761631843511,-4.08632403,0.00017556,2]
[392536982,1761631843522,-500.0,0.00017556,2]
[392536983,1761631843532,-500.0,0.00017556,2]
[392536984,1761631843542,-500.0,0.00017556,2]
[392536985,1761631843554,-500.0,0.00017556,2]
[392536986,1761631843564,-500.0,0.00017556,2]
[392536987,1761631843574,-500.0,0.00017556,2]
[392536988,1761631843585,-3672.69237546,0.00030522,2]
[392536989,1761631843597,-744.89842846,0.00030522,2]
[392536990,1761631843606,-173.64,0.0003063,2]
[392536991,1761631843616,-393.435,0.0003065,26]
[392536992,1761631843627,-150.0,0.00030767,2]
[392536993,1761631843638,-150.0,0.00030767,2]
[392536994,1761631843650,-150.0,0.00030767,2]
[392536995,1761631843660,-150.0,0.00030767,2]
[392536996,1761631843669,-1000.0,0.0003088,2]
[392536997,1761631843680,-2500.0,0.00030938,2]
[392536998,1761631843689,-250.0,0.00031,7]
[392536999,1761631843699,-201.0,0.00031034,7]
[392537000,1761631843709,-44257.26493514,0.00031038,2]
[392537002,1761631846534,-407.47430949,0.00017556,2]
[392537003,1761631846700,-92.52569051,0.00017556,2]
[392537004,1761631846709,-500.0,0.00017556,2]
[392537005,1761631846722,-17.28399048,0.00017556,2]
[392537006,1761631861618,2500.0,0.00024247,120]
[392537009,1761632036262,273.48,0.00013699,2]
[392537014,1761632678889,2120.0,0.00031507,120]
[392537015,1761632726479,150.0,0.00029415,120]
[392537056,1761633031633,-250.0,0.00017,2]
[392537058,1761633031643,-150.0,0.00017,2]
[392537060,1761633031652,-250.0,0.0001785,2]
[392537062,1761633031662,-285.90082933,0.00018,2]
[392537064,1761633031672,-250.0,0.000187,2]
[392537066,1761633031681,-195.0,0.000187,2]
[392537069,1761633031692,-273.48,0.00020187,2]
[392537070,1761633031702,-170.68274605,0.0002148,2]
[392537071,1761633031711,-75.85310873,0.00025,3]
[392537072,1761633031785,-2027.31670856,0.00025,3]
[392537073,1761633031879,-1779.03145415,0.00025,3]
[392537074,1761633031889,-273.48,0.00026676,2]
[392537075,1761633031898,-300.0,0.00027884,2]
[392537076,1761633031908,-300.0,0.00027884,2]
[392537077,1761633031918,-1200.0,0.00027885,2]
[392537078,1761633031928,-500.0,0.00027885,2]
[392537079,1761633031938,-500.0,0.00027885,2]
[392537080,1761633031949,-500.0,0.00027885,2]
[392537081,1761633031958,-500.0,0.00027885,2]
[392537083,1761633031968,-610.06566357,0.00027885,2]
[392537085,1761633031977,-684.34,0.00027888,30]
[392537087,1761633031987,-11662.11,0.00027888,2]
[392537088,1761633031996,-842.76485484,0.00028,2]
[392537091,1761633032006,-2679.98684195,0.00028,2]
[392537092,1761633032015,-150.0,0.0002843,4]
[392537093,1761633032024,-150.0,0.0002843,4]
[392537094,1761633032038,-150.0,0.0002843,4]
[392537095,1761633032048,-150.0,0.0002843,4]
[392537096,1761633032057,-150.0,0.0002843,4]
[392537097,1761633032067,-150.0,0.0002843,4]
[392537098,1761633032076,-166.68,0.00028725,2]
[392537099,1761633032086,-250.0,0.00029313,2]
[392537100,1761633032095,-150.0,0.00029375,2]
[392537101,1761633032104,-150.0,0.00029415,2]
[392537102,1761633032113,-443.67,0.00029531,2]
[392537103,1761633032122,-5515.0,0.000296,5]
[392537104,1761633032131,-151.0,0.0002965,2]
[392537105,1761633032140,-151.0,0.0002965,2]
[392537106,1761633032149,-151.0,0.0002965,2]
[392537107,1761633032158,-151.0,0.0002965,2]
[392537108,1761633032167,-151.0,0.0002965,2]
[392537109,1761633032176,-151.0,0.0002965,2]
[392537110,1761633032185,-151.0,0.0002965,2]
[392537112,1761633032194,-151.0,0.0002965,2]
[392537114,1761633032203,-151.0,0.0002965,2]
[392537116,1761633032212,-151.0,0.0002965,2]
[392537118,1761633032221,-151.0,0.0002965,2]
[392537120,1761633032230,-151.0,0.0002965,2]
[392537121,1761633032239,-151.0,0.0002965,2]
[392537123,1761633032248,-151.0,0.0002965,2]
[392537124,1761633032257,-151.0,0.0002965,2]
[392537125,1761633032267,-151.0,0.0002965,2]
[392537126,1761633032276,-151.0,0.0002965,2]
[392537127,1761633032285,-151.0,0.0002965,2]
[392537128,1761633032294,-151.0,0.0002965,2]
[392537129,1761633032304,-151.0,0.0002965,2]
[392537130,1761633032313,-16846.8848225,0.00029668,2]
[392537131,1761633032322,-516.6096342,0.000297,5]
[392537132,1761633032332,-162.99,0.00029712,2]
[392537133,1761633032346,-500.0,0.0002998,2]
[392537135,1761633032355,-500.0,0.0002998,2]
[392537137,1761633032365,-272.43373016,0.0003,2]
[392537139,1761633032374,-1642.97500614,0.0003,2]
[392537141,1761633032383,-150.0,0.0003001,7]
[392537143,1761633032392,-150.0,0.0003001,7]
[392537145,1761633032403,-245.35,0.00030113,2]
[392537147,1761633032412,-300.0,0.00030118,2]
[392537149,1761633032421,-1220.86,0.00030216,2]
[392537152,1761633032434,-245.35,0.00030323,2]
[392537154,1761633032443,-500.0,0.00030391,2]
[392537156,1761633032452,-500.0,0.00030391,2]
[392537158,1761633032462,-161.0,0.000305,31]
[392537160,1761633032471,-245.35,0.00030534,2]
[392537162,1761633032480,-314.748,0.0003065,26]
[392537164,1761633032489,-1425.0,0.0003071,2]
[392537166,1761633032499,-337.93316,0.0003073,2]
[392537168,1761633032508,-245.35,0.00030745,2]
[392537170,1761633032518,-500.0,0.00030802,2]
[392537172,1761633032527,-500.0,0.00030802,2]
[392537174,1761633032536,-836.94686506,0.00030854,2]
[392537176,1761633032545,-1425.0,0.00030929,2]
[392537178,1761633032554,-1000.0,0.00030938,2]
[392537180,1761633032563,-245.35,0.00030956,2]
[392537182,1761633032573,-500.0,0.00031007,2]
[392537184,1761633032582,-200.0,0.00031038,2]
[392537186,1761633032591,-507.46797746,0.00031051,2]
[392537188,1761633032601,-2669.91704805,0.000311,2]
[392537190,1761633032611,-321.17,0.00031129,14]
[392537192,1761633032620,-200.0,0.00031139,2]
[392537194,1761633032629,-2669.91704796,0.00031144,2]
[392537196,1761633032639,-34878.6777,0.00031148,2]
[392537198,1761633032648,-245.35,0.00031167,2]
[392537200,1761633032657,-2669.91704796,0.00031189,2]
[392537202,1761633032667,-35759.70052392,0.00031197,2]
[392537227,1761633037664,-1052.97,0.00031197,2]
[392537235,1761633045631,-290.00729595,0.00027884,2]
[392537236,1761633045641,-93.75114431,0.00031074,2]
[392537241,1761633425352,500.0,0.00037378,50]
[392537242,1761633425612,200.0,0.00037378,50]
[392537243,1761633425951,500.0,0.00037378,50]
[392537244,1761633432523,200.0,0.00037378,50]
[392537245,1761633433943,200.0,0.00037378,50]
[392537246,1761633482154,1500.0,0.00037378,50]
[392537249,1761633494649,1466.68501682,0.00037378,50]
[392537251,1761633564382,921.0,0.00037378,50]
[392537252,1761633587664,1600.0,0.00030245,120]
[392537255,1761633725685,500.0,0.00037378,50]
[392537256,1761633726322,500.0,0.00037378,50]
[392537257,1761633726948,500.0,0.00037378,50]
[392537258,1761633727568,500.0,0.00037378,50]
[392537259,1761633728396,500.0,0.00037378,50]
[392537260,1761633729043,500.0,0.00037378,50]
[392537261,1761633729661,500.0,0.00037378,50]
[392537262,1761633730351,500.0,0.00037378,50]
[392537263,1761633731000,500.0,0.00037378,50]
[392537271,1761634025908,151.0,0.00037378,50]
[392537272,1761634026827,151.0,0.00037378,50]
[392537273,1761634027129,151.0,0.00037378,50]
[392537274,1761634027732,151.0,0.00037378,50]
[392537275,1761634028437,151.0,0.00037378,50]
[392537276,1761634029100,151.0,0.00037378,50]
[392537277,1761634029767,151.0,0.00037378,50]
[392537278,1761634030394,151.0,0.00037378,50]
[392537279,1761634031009,151.0,0.00037378,50]